Cogmind - Beta 13 @@@ ROGUE MODE // 2024.06.11 @ 19:47:06 Player: ImmortalXCurse Result: Destroyed by D-53 Grenadier with Mini Grenade Launcher Performance ------------- Evolutions (0) 0 Regions Visited (4) 800 Robots Destroyed (23) 115 Value Destroyed (342) 342 Prototype IDs (1) 20 Alien Tech Used (0) 0 Bonus (-80) -80 TOTAL SCORE: 1197 Bonus ------- Follower Combat Kills 25 Aligned with FarCom 300 Friendly Fire -405 Cogmind --------- Core Integrity 0/250 Matter 95/300 Energy 63/100 System Corruption 5% Temperature Cool (0) Movement Core (200) Ox3 Location -9/Mines Parts ------- > --- POWER (1) -------- (None) > --- PROPULSION (2) --- (None) > --- UTILITY (2) ------ Medium Storage Unit Trap Reconfigurator > --- WEAPON (2) ------- (None) > --- INVENTORY (10) --- Light Treads Improved Heat Sink High-capacity Matter Pod (200) Improved Terrain Scanner Seismic Detector Peak State ------------ > --- POWER ------------ Light Nuclear Core > --- PROPULSION ------- Light Treads Light Treads > --- UTILITY ---------- Medium Storage Unit Trap Reconfigurator > --- WEAPON ----------- Particle Cannon Rocket Launcher > --- INVENTORY -------- Ion Engine Light Treads Light Treads Improved Heat Sink High-capacity Matter Pod Improved Terrain Scanner Seismic Detector Rocket Launcher Mining Laser [Rating: 20] Favorites ----------- Power Light Nuclear Core Engine Light Ion Engine Power Core Light Nuclear Core Propulsion Light Treads Treads Light Treads Utility Seismic Detector Device Seismic Detector Storage Medium Storage Unit Weapon Assault Rifle Energy Gun EM Pulse Gun Energy Cannon Particle Cannon Ballistic Gun Assault Rifle Launcher Rocket Launcher Special Weapon Mining Laser Build | -11 -10 -10 -10 -9 ------- Run | Yrd Mat Min Exi Min Slots Evolved . | . . . . . Power . | . . . . . Propulsion . | . . . . . Utility . | . . . . . Weapon . | . . . . . Parts Attached 23 | 8 5 3 . 7 Power 4 | 2 . 1 . 1 Engine 3 | 2 . . . 1 Core 1 | . . 1 . . Reactor . | . . . . . Propulsion 3 | 2 . . . 1 Treads 3 | 2 . . . 1 Leg . | . . . . . Wheel . | . . . . . Hover . | . . . . . Flight . | . . . . . Utility 4 | 2 1 . . 1 Device 2 | 1 . . . 1 Storage 2 | 1 1 . . . Processor . | . . . . . Hackware . | . . . . . Protection . | . . . . . Artifact . | . . . . . Weapon 12 | 2 4 2 . 4 Energy Gun 1 | 1 . . . . Energy Cannon 4 | . 1 1 . 2 Ballistic Gun 2 | 1 1 . . . Ballistic Cannon . | . . . . . Launcher 3 | . 1 1 . 1 Special Weapon 2 | . 1 . . 1 Impact Weapon . | . . . . . Slashing Weapon . | . . . . . Piercing Weapon . | . . . . . Special Melee Weapon . | . . . . . Unidentified Prototypes 1 | . . . . 1 Parts Lost 10 | . . . . 10 Power 2 | . . . . 2 Propulsion 3 | . . . . 3 Utility . | . . . . . Weapon 5 | . . . . 5 Highest Loss Streak 6 | . . . . 6 To Critical Strikes . | . . . . . Average Slot Usage (%) 99 | . 99 100 100 92 Engine 3 | . 14 . . . Core 10 | . . 13 14 11 Treads 27 | . 28 28 28 26 Device 14 | . 14 14 14 14 Storage 14 | . 14 14 14 14 Energy Cannon 3 | . 9 7 . 2 Ballistic Gun 14 | . 17 14 14 10 Launcher 9 | . . 7 14 11 Naked Turns . | . . . . . Heaviest Build 22 | 14 20 22 22 22 Greatest Support 40 | 40 40 40 40 40 Greatest Overweight (x) 4 | 4 . . . 3 Average Overweight (x) . | . . . . . Largest Inventory Capacity 10 | 8 10 10 10 10 Average Capacity 9 | 7 8 10 10 10 Most Carried 10 | 7 8 10 10 10 Average Carried 9 | 4 7 9 9 9 Final Capacity 10 | 8 10 10 10 10 Final Carried 10 | 6 8 10 10 5 Class Distribution -------------------- 51% | Mutant 48% | Commander-Mutant Dominant Class ---------------- Mutant | -10/Materials Mutant | -10/Mines Commander-Mutant | -10/Exiles Mutant | -9/Mines Resources | -11 -10 -10 -10 -9 ----------- Run | Yrd Mat Min Exi Min Matter Collected 698 | 295 244 95 . 64 Remotely . | . . . . . Salvage Created 739 | 156 286 93 . 204 Parts 38 | 16 5 5 . 12 Haulers Intercepted . | . . . . . Recyclers Shooed . | . . . . . Parts Field Recycled . | . . . . . Retrieved Matter . | . . . . . Parts Self-Destructed . | . . . . . Prevented . | . . . . . Kills | -11 -10 -10 -10 -9 ------- Run | Yrd Mat Min Exi Min Combat Hostiles Destroyed 28 | . 2 2 . 24 Guns 1 | . . 1 . . Cannons 5 | . 2 1 . 2 AOE 22 | . . . . 22 Classes Destroyed 9 | 3 2 . . 4 Worker 4 | 2 1 . . 1 Tunneler 3 | 3 . . . . Recycler 3 | 1 2 . . . Operator 1 | . . . . 1 Watcher 1 | . 1 . . . Swarmer 3 | . . . . 3 Grunt 7 | . 2 2 . 3 Duelist 1 | . . . . 1 Assembled 19 | . . . . 19 Best Kill Streak 17 | 4 3 2 . 17 Combat Bots Only 17 | . 2 2 . 17 Max Kills in Single Turn 3 | 1 1 1 . 3 Gunslinging . | . . . . . Exploded 2 | . . . . 2 Melee . | . . . . . Uniques/NPCs Destroyed . | . . . . . Combat | -11 -10 -10 -10 -9 -------- Run | Yrd Mat Min Exi Min Hostile Shots Fired 95 | . 12 3 . 80 Missed 29 | . 5 1 . 23 Damage Taken 1255 | . 93 30 . 1132 Core 251 | . 18 . . 233 Absorbed by Shields . | . . . . . Core Remaining (%) 100 | 100 . . . . Volleys Fired 69 | 9 18 2 . 40 Largest 2 | 2 2 2 . 2 Hottest 168 | 60 88 88 . 168 Shots Fired 101 | 18 36 4 . 43 Gun 49 | 18 20 2 . 9 Cannon 31 | . 16 2 . 13 Launcher 19 | . . . . 19 Special 2 | . . . . 2 Kinetic 40 | 9 20 2 . 9 Thermal 33 | . 16 2 . 15 Explosive 19 | . . . . 19 Electromagnetic 9 | 9 . . . . Robot Hit Streak 10 | 10 6 5 . 3 Robot Miss Streak 6 | 2 5 . . 6 Penetration Max . | . . . . . Secondary Targets . | . . . . . Shots Hit Robots 51 | 14 21 3 . 13 Core Hits 56 | 6 8 2 . 40 Critical Kills 1 | . . 1 . . Critical Parts Destroyed . | . . . . . Critical Strikes 1 | . . 1 . . Destroy 1 | . . 1 . . Melee Attacks . | . . . . . Impact . | . . . . . Slashing . | . . . . . Piercing . | . . . . . Sneak Attacks . | . . . . . Combat Hostiles . | . . . . . Follow-up Attacks . | . . . . . Damage Inflicted 2514 | 261 389 56 . 1808 Guns 392 | 186 116 26 . 64 Cannons 346 | . 265 20 . 61 Explosions 1734 | 75 . . . 1659 Melee . | . . . . . Ramming 18 | . 8 10 . . Kinetic 293 | 87 116 26 . 64 Thermal 459 | 75 265 20 . 99 Explosive 1645 | . . . . 1645 Electromagnetic 99 | 99 . . . . Impact . | . . . . . Slashing . | . . . . . Piercing . | . . . . . Highest Corruption 5 | . . . . 5 Average Corruption 5 | . . . . 5 Corruption Purged . | . . . . . Corruption Blocked . | . . . . . Effects 2 | . . . . 2 Matter Fused 1 | . . . . 1 Alerts 1 | . . . . 1 Overload Shots . | . . . . . Overflow Damage 126 | . 1 . . 125 Projectiles 2 | . 1 . . 1 Explosions 124 | . . . . 124 Melee . | . . . . . Knockbacks . | . . . . . Impact . | . . . . . Kinetic . | . . . . . Secondary . | . . . . . Self-Inflicted Damage 179 | . . . . 179 Shots 4 | . . . . 4 Rammed 4 | . 2 2 . . Targets Rammed 4 | . 2 2 . . Kicked . | . . . . . Crushed . | . . . . . Highest Temperature 225 | . 225 63 . 143 Average Temperature 64 | . 79 35 . 55 Received Heat Transfer 376 | . 54 18 . 304 Siege Activations . | . . . . . Robots Corrupted . | . . . . . Combat Hostiles . | . . . . . Parts Fried 1 | 1 . . . . Impact Corruptions . | . . . . . Robots Melted . | . . . . . Combat Hostiles . | . . . . . Parts Melted 1 | . 1 . . . Heat Transferred 829 | 100 481 37 . 211 Parts Sabotaged . | . . . . . Parts Stolen . | . . . . . Parts Stripped . | . . . . . Power Chain Reactions 1 | 1 . . . . Alert | -11 -10 -10 -10 -9 ------- Run | Yrd Mat Min Exi Min Peak Influence 204 | 30 125 50 . 204 Initial 19 | . 19 . . . Average 39 | 11 29 30 . 85 Maximum Alert Level 1 | . . . . 1 Low Security (%) 99 | 100 100 100 . 99 Level 1 . | . . . . . Level 2 . | . . . . . Level 3 . | . . . . . Level 4 . | . . . . . Level 5 . | . . . . . High Security . | . . . . . Max Security . | . . . . . Squads Dispatched 1 | . 1 . . . Investigation . | . . . . . Extermination . | . . . . . Reinforcement 1 | . 1 . . . Assault . | . . . . . Garrison . | . . . . . Intercept . | . . . . . Searches Triggered . | . . . . . Construction Impeded . | . . . . . Haulers Reinforced . | . . . . . Active Scanning Responses . | . . . . . Cargo Convoy Interrupts . | . . . . . Stealth | -11 -10 -10 -10 -9 --------- Run | Yrd Mat Min Exi Min Distress Signals 2 | . 2 . . . Communications Jammed . | . . . . . Distress Signals . | . . . . . Times Spotted 42 | . 9 2 . 31 Peak Tracking Total 9 | . 4 2 . 9 Tactical Retreats 3 | . 1 . . 2 Traps | -11 -10 -10 -10 -9 ------- Run | Yrd Mat Min Exi Min Traps Triggered . | . . . . . Indirectly . | . . . . . Trap Hack Attempts . | . . . . . Triggered . | . . . . . Disarmed . | . . . . . Reprogrammed . | . . . . . Reused . | . . . . . Traps Extracted . | . . . . . Installed . | . . . . . Triggered . | . . . . . Machines | -11 -10 -10 -10 -9 ---------- Run | Yrd Mat Min Exi Min Machines Disabled 1 | . . . . 1 Max in Single Turn 1 | . . . . 1 Machines Repaired . | . . . . . Machines Dismantled . | . . . . . Machines Sabotaged . | . . . . . Overloaded Fab Kills . | . . . . . Hacking | -11 -10 -10 -10 -9 --------- Run | Yrd Mat Min Exi Min Machines Accessed 4 | . 3 . 1 . Terminals 3 | . 3 . . . Fabricators . | . . . . . Repair Stations . | . . . . . Recycling Units . | . . . . . Scanalyzers . | . . . . . Garrison Access . | . . . . . Total Hacks 29 | . 6 . 23 . Successful 29 | . 6 . 23 . Failed . | . . . . . Catastrophic . | . . . . . Database Lockouts . | . . . . . Manual 5 | . 4 . 1 . Terminals 6 | . 6 . . . Fabricators . | . . . . . Repair Stations . | . . . . . Recycling Units . | . . . . . Scanalyzers . | . . . . . Garrison Access . | . . . . . Terminal Hacks 26 | . 3 . 23 . Record 23 | . . . 23 . Branch Access Points 1 | . 1 . . . Terminal Index 1 | . 1 . . . Unreport Threat 1 | . 1 . . . Fabricator Hacks . | . . . . . Repair Station Hacks . | . . . . . Recycling Unit Hacks . | . . . . . Scanalyzer . | . . . . . Garrison Access Hacks . | . . . . . Unauthorized Hacks 3 | . 3 . . . Terminals 3 | . 3 . . . Assimilate 1 | . 1 . . . Botnet 2 | . 2 . . . Fabricators . | . . . . . Repair Stations . | . . . . . Recycling Units . | . . . . . Scanalyzers . | . . . . . Garrison Access . | . . . . . Data Cores Recovered . | . . . . . Used . | . . . . . Hacking Detections 3 | . 3 . . . Full Trace Events . | . . . . . Feedback Events . | . . . . . Feedback Blocked . | . . . . . Robot Schematics Acquired . | . . . . . Robots Built . | . . . . . Authchips . | . . . . . Time . | . . . . . Total Robot Build Rating . | . . . . . Part Schematics Acquired . | . . . . . Parts Built . | . . . . . Authchips . | . . . . . Time . | . . . . . Total Part Build Rating . | . . . . . Parts Repaired . | . . . . . Time . | . . . . . Parts Recycled . | . . . . . Recycled Matter . | . . . . . Retrieved Matter . | . . . . . Retrieved Components . | . . . . . Parts Scanalyzed . | . . . . . Part Schematics Acquired . | . . . . . Parts Damaged . | . . . . . Bothacking | -11 -10 -10 -10 -9 ------------ Run | Yrd Mat Min Exi Min Used RIF Installer . | . . . . . Robots Hacked . | . . . . . Non-combat . | . . . . . Combat . | . . . . . Robot Hacks Applied . | . . . . . Relay Couplers Released . | . . . . . Fabnet Peak Effective % . | . . . . . Robots Rewired . | . . . . . Allies Hacked . | . . . . . Hacks Repelled . | . . . . . Allies | -11 -10 -10 -10 -9 -------- Run | Yrd Mat Min Exi Min Total Allies 4 | . 1 3 . . Largest Group 4 | . 1 4 4 3 Highest-Rated Group 50 | . 10 50 50 34 Highest-Rated Ally 16 | . 10 16 16 16 Total Orders 1 | . . . 1 . STAY 1 | . . . 1 . Ally Attacks 13 | . . . . 13 Total Damage 122 | . . . . 122 Kills 1 | . . . . 1 Allies Corrupted . | . . . . . Allies Melted . | . . . . . Intel | -11 -10 -10 -10 -9 ------- Run | Yrd Mat Min Exi Min Robot Analysis Total . | . . . . . Derelict Logs Recovered 1 | . . 1 . . Drone Launches . | . . . . . Drone Recoveries . | . . . . . Exploration | -11 -10 -10 -10 -9 ------------- Run | Yrd Mat Min Exi Min Turns Passed 3020 | 185 613 639 1233 350 Spaces Moved 1725 | 87 332 383 770 153 Core 32 | 31 . . . 1 Treads 1693 | 56 332 383 770 152 Legs . | . . . . . Wheels . | . . . . . Hover . | . . . . . Flight . | . . . . . Fastest Speed 50 | 50 160 160 160 160 Average Speed 160 | 159 160 160 160 160 Slowest Speed 250 | 250 160 160 160 200 Overloaded Moves . | . . . . . Propulsion Burnouts . | . . . . . Robots Hopped . | . . . . . Cave-ins Triggered . | . . . . . Exploration Rate (%) 47 | 7 39 71 92 26 Regions Visited 4 Branch Regions 3 Pre-discovered Areas 2 | . . 1 1 . Known Exits Taken 2 | . 1 . 1 . Unknown Exits Taken 2 | 1 . 1 . . Scrap Searched . | . . . . . Spaces Dug . | . . . . . Terrain Destroyed 125 | 5 . . . 120 Melee . | . . . . . Projectile 1 | . . . . 1 AOE 124 | 5 . . . 119 Terrain Rammed . | . . . . . Walls Destroyed . | . . . . . Machines Disabled . | . . . . . Actions | -11 -10 -10 -10 -9 --------- Run | Yrd Mat Min Exi Min Total 1878 | 113 380 403 772 210 Wait 25 | . 5 10 . 10 Move 1721 | 86 331 382 769 153 Hop . | . . . . . Pick Up 21 | 9 9 2 1 . Fast Attach 7 | 5 1 . . 1 Attach 8 | 2 1 . . 5 Detach 1 | . 1 . . . Swap 8 | 1 3 3 . 1 Drop 12 | 1 9 1 1 . Fire 69 | 9 18 2 . 40 Melee . | . . . . . Ram . | . . . . . Kick . | . . . . . Crush 4 | . 2 2 . . Escape Stasis . | . . . . . Rewire 2 | . . 1 1 . Trap . | . . . . . Miscellaneous . | . . . . . Route ------- -11/Scrapyard -10/Materials -10/Mines (discovered 2 exits: [*Mat] / *Exi) -10/Exiles (discovered 2 exits: *Min x2) -9/Mines History --------- Turn | Location | Event 2 | -11/Scrapyard | Met Revision 17 5 | -11/Scrapyard | Discovered new exit (range 15) 186 | -11/Scrapyard | Entered Materials 310 | -10/Materials | Build established: Mutant 492 | -10/Materials | Discovered new exit (range 7) 668 | -10/Materials | Identified exit to Mines 799 | -10/Materials | Entered Mines 799 | -10/Mines | Accompanied by 1 ally 1241 | -10/Mines | Assisted by bots powering up and referring to "LRC-V3" 1281 | -10/Mines | Discovered new exit (range 8) 1400 | -10/Mines | Learned location of Storage (-8) 1427 | -10/Mines | Deemed a non-threat by the Exiles lab entrance 1428 | -10/Mines | Discovered new exit (range 5) 1438 | -10/Mines | Entered Exiles 1438 | -10/Exiles | Accompanied by 4 allies 1439 | -10/Exiles | Identified exit to Mines 1504 | -10/Exiles | Met 8R-AWN 1533 | -10/Exiles | Build established: Commander-Mutant 1538 | -10/Exiles | Met EX-HEX 1638 | -10/Exiles | Met EX-DEC 1681 | -10/Exiles | Visited The Gauntlet 2019 | -10/Exiles | Met EX-BIN 2046 | -10/Exiles | Aligned with FarCom system 2048 | -10/Exiles | Given EX-Vault access code 2173 | -10/Exiles | Opened EX-Vault 2205 | -10/Exiles | Found Prototype Device 2243 | -10/Exiles | Warned to stay clear of 0b10 Research branches 2333 | -10/Exiles | Learned location of Zion (-7) 2671 | -10/Exiles | Left Exiles lab with Trap Reconfigurator 2671 | -10/Exiles | Entered Mines 2671 | -9/Mines | Accompanied by 3 allies 2679 | -9/Mines | Identified Trap Reconfigurator 2895 | -9/Mines | Assembled infested the area 2957 | -9/Mines | Core integrity fell below 50% 2960 | -9/Mines | Destroyed 17 combat bots 2988 | -9/Mines | Lost 4 parts (1p3w) 3000 | -9/Mines | Build established: Mutant 3018 | -9/Mines | Core integrity fell below 20% 3021 | -9/Mines | Destroyed by D-53 Grenadier with Mini Grenade Launcher Last Messages --------------- 02997_ U-05 Engineer lays Concrete. 03002_ Lgt. Treads destroyed. 03004_ U-05 Engineer lays Concrete. 03007_ as-62253 destroyed. 03007_ Destroyed Flight Unit. 03007_ S-10 Pest destroyed. 03007_ Particle Cannon destroyed. 03007_ Destroyed Particle Cannon. 03007_ S-10 Pest destroyed. 03009_ Rocket Launcher destroyed. 03009_ U-05 Engineer destroyed. 03011_ U-05 Engineer lays Concrete. 03011_ Ion Engine destroyed. 03012_ The unstable cave ceiling collapses. 03012_ U-05 Engineer lays Concrete. 03015_ K-01 Serf collects debris. 03018_ The unstable cave ceiling collapses. 03019_ Lgt. Treads destroyed. 03020_ K-01 Serf collects debris. 03020_ U-05 Engineer lays Concrete. Map ----- +----------------------------------------------------+ | ?????????????????# ##???????? | | ????############?# """ #???????? | | ???? #?# ######## """ #???????? | | ???# """ """ #?# #?????## """ #???????? | | ???# """ """ #?# #?????# #???????? | | ???# """ """ ### ##????# ##???????? | | ???# ## ####??## ##????????? | | ???# # #"#### ##?????????? | | ???######## #### #??????????? | | ??????????# #??# ######### #??????????? | | ??????????# #??# ##?????? ????????? | | ??????????# #### ##????? ####???????? | | ??????????# ## ?????? #??????????? | | ??????????######## ##### #??????????? | | ??????????????#### k% #?????????? | | ?????????????## ## ########?? ??????????? | | ?????????????# #???????? ?????????? | | ????????????## d ##???????? ?????????? | | ???????????## # #???????? ????????? | | ??????????## d ##???????????????????? | | ??????????# #???????????????????? | | ??????????## ##??????????????????? | | ???????????## #??????????????????? | | ????????????### #??????????????????? | | ??????????????# #??????????????????? | | ??????????????# @ #??????????????????? | | ??????????????# #??????????????????? | | ??????????????# #??????????????????? | | ?????????????## # #????????????????? | | ?????????????# #????????????????? | | ?????????????# # #?????????????? | | ?????????????# # #???????????? | | ?????????????## # #??????????? | | ????????????? #### ## t ??????????? | | ???????????? ?? # u #??????????? | | ???????????#### ??## # ???????????? | | ??????????????# ???# ???????????? | | ??????????????#????? # ## ????????????? | | ???????????????????? ### # # ????????????? | | ????????????????????#???# ??????????????? | | ?????????????????????????#??????????????????? | | ????????????????????????????????????????????? | | ????????????????????????????????????????????? | | ????????????????????????????????????????????? | | ????????????????????????????????????????????? | | ????????????????????????????????????????????? | | ????????????????????????????????????????????? | | ????????????????????????????????????????????? | | ????????????????????????????????????????????? | | ????????????????????????????????????????????? | +----------------------------------------------------+ Best States ------------- Heat Dissipation 25 Energy Generation 14 Energy Capacity 250 Matter Stores 300 Matter Capacity 300 Sight Range 16 Terrain Scan Density 10 Evasion (%) 40 Recoil Reduction 2 Item Schematics ----------------- None Robot Schematics ------------------ None Fabricated ------------ Nothing Alien Tech Used ----------------- None Achievements -------------- Exterminator Let's See Who's Tougher Challenges ------------ None Game ------ Seed WaveInsulatedCompressor Manual? 0 Play Time 00:30:01 Cumulative 7.5 hours Start 2024.06.11 @ 19:16:58 End 2024.06.11 @ 19:47:06 Sessions 1 Manual Loads 0 Difficulty Rogue Special Mode None Game No. 9 Rogue 9 Adventurer 0 Explorer 0 Win Type - Total 0 Types 0/0/0/0/0/0/0/0/0 Lore% 15 Gallery% 15 Achievement% 16 Wizard Run 0 Options --------- Layout 2 ASCII 0 Keyboard 1 Movement Vi Keybinds 0 Fullscreen 2 Font 48/Smallcaps Map View 50x44 Zoom Use 0% Tactical HUD 1 Map Filters NONE Filters NONE Steam 1 RUN: 4fbf0228-7289-4a15-a729-3f44024e1673